bitfinex/quotes_BTCUSD_20251113
["timestamp","ask_amount","ask_price","bid_price","bid_amount"]
[1763011099033,0.23,102110.0,102100.0,0.19588638]
[1763011099258,0.2300918,102110.0,102100.0,1.21142122]
[1763011099637,0.2300918,102110.0,102100.0,1.24084823]
[1763011099815,0.2300918,102110.0,102100.0,1.74861565]
[1763011100220,9.18e-05,102110.0,102100.0,1.75861564]
[1763011100436,9.18e-05,102110.0,102100.0,1.81203437]
[1763011101068,1e-08,102120.0,102110.0,0.20586719]
[1763011101290,1e-08,102120.0,102110.0,1.27482076]
[1763011102348,1e-08,102120.0,102110.0,0.76905334]
[1763011102551,1e-08,102120.0,102110.0,0.70563462]
[1763011102752,1e-08,102120.0,102110.0,0.70763462]
[1763011103416,1e-08,102120.0,102110.0,0.80034016]
[1763011106472,0.01811767,102120.0,102110.0,0.80034016]
[1763011106671,0.01811767,102120.0,102110.0,0.1998672]
[1763011106672,0.05303767,102120.0,102110.0,0.1998672]
[1763011106877,0.27980569,102120.0,102110.0,0.004]
[1763011107107,3.11057311,102120.0,102110.0,0.004]
[1763011107511,2.60280569,102120.0,102110.0,0.002]
[1763011107708,2.1958672,102110.0,102100.0,0.1958856]
[1763011108013,2.26545403,102110.0,102100.0,0.1958856]
[1763011108219,2.06958683,102110.0,102100.0,0.1958856]
[1763011108455,0.06958683,102110.0,102100.0,0.1958856]
[1763011108668,1.94019483,102110.0,102100.0,0.1958856]
[1763011110106,1.91964483,102110.0,102100.0,0.70365302]
[1763011110321,1.91964483,102110.0,102100.0,0.1958856]
[1763011111697,2.13434203,102110.0,102090.0,0.80615751]
[1763011111937,1.901528,102100.0,102090.0,0.80624931]
[1763011112090,0.01811683,102100.0,102090.0,0.80624931]
[1763011113046,0.01811683,102100.0,102090.0,0.29848189]
[1763011113809,0.01811683,102100.0,102090.0,0.29948189]
[1763011114718,0.01811683,102100.0,102090.0,0.8759118]
[1763011114916,0.01811683,102100.0,102090.0,0.30048189]
[1763011116515,0.01811683,102100.0,102090.0,0.8769118]
[1763011118289,0.01811683,102100.0,102090.0,0.30048189]
[1763011119059,0.06644683,102100.0,102090.0,0.20777635]
[1763011119272,0.26233321,102100.0,102090.0,0.20777635]
[1763011119631,0.23283321,102100.0,102090.0,0.20777635]
[1763011119835,0.23283321,102100.0,102090.0,0.20677635]
[1763011120058,0.23283321,102100.0,102090.0,0.20577635]
[1763011120261,0.03694683,102100.0,102090.0,0.20577635]
[1763011121131,0.26233321,102100.0,102090.0,0.20577635]
[1763011121414,3.06329112,102100.0,102090.0,9.18e-05]
[1763011121618,3.09211501,102100.0,102090.0,9.18e-05]
[1763011121771,3.15648504,102100.0,102090.0,9.18e-05]
[1763011122190,3.13675435,102100.0,102090.0,9.18e-05]
[1763011123010,3.13875435,102100.0,102090.0,9.18e-05]
[1763011123207,3.15867017,102100.0,102090.0,9.18e-05]
[1763011123714,3.13875435,102100.0,102090.0,9.18e-05]
[1763011123924,3.14075435,102100.0,102090.0,9.18e-05]
[1763011126188,3.16067017,102100.0,102090.0,9.18e-05]
[1763011126452,3.36067017,102100.0,102090.0,9.18e-05]
[1763011126813,3.41561269,102100.0,102090.0,9.18e-05]
[1763011128646,3.3867888,102100.0,102090.0,9.18e-05]
[1763011129186,3.36067017,102100.0,102090.0,9.18e-05]
[1763011131709,3.36066308,102100.0,102090.0,9.18e-05]
[1763011133710,3.38678171,102100.0,102090.0,9.18e-05]
[1763011136507,3.40083171,102100.0,102090.0,9.18e-05]
[1763011136935,4.34752409,102100.0,102090.0,9.18e-05]
[1763011137135,3.83981666,102100.0,102090.0,9.18e-05]
[1763011137480,3.81369803,102100.0,102090.0,9.18e-05]
[1763011138890,4.32140546,102100.0,102090.0,9.18e-05]
[1763011139686,3.81369803,102100.0,102090.0,9.18e-05]
[1763011142235,3.59378221,102100.0,102090.0,9.18e-05]
[1763011142441,3.55036347,102100.0,102090.0,9.18e-05]
[1763011142643,3.54127736,102100.0,102090.0,9.18e-05]
[1763011142789,3.5846961,102100.0,102090.0,9.18e-05]
[1763011146988,3.0768043,102100.0,102090.0,9.18e-05]
[1763011147698,3.03338556,102100.0,102090.0,9.18e-05]
[1763011147921,2.5258625,102100.0,102090.0,9.18e-05]
[1763011148062,1.97747612,102100.0,102090.0,0.19599737]
[1763011148320,2.68743427,102100.0,102090.0,9.18e-05]
[1763011148536,3.01043427,102100.0,102090.0,9.18e-05]
[1763011148938,3.03145674,102100.0,102090.0,9.18e-05]
[1763011150490,3.0694816,102100.0,102090.0,9.18e-05]
[1763011154003,3.04059289,102100.0,102090.0,9.18e-05]
[1763011154406,3.11290034,102100.0,102090.0,9.18e-05]
[1763011154615,3.13901897,102100.0,102090.0,9.18e-05]
[1763011154798,3.35893479,102100.0,102090.0,9.18e-05]
[1763011155451,3.13004608,102100.0,102090.0,9.18e-05]
[1763011155654,3.11013026,102100.0,102090.0,9.18e-05]
[1763011156680,2.8939978,102100.0,102090.0,9.18e-05]
[1763011156882,2.9125578,102100.0,102090.0,9.18e-05]
[1763011157296,2.011116,102100.0,102090.0,9.18e-05]
[1763011157503,2.86069291,102100.0,102090.0,9.18e-05]
[1763011157905,2.86069291,102100.0,102090.0,0.19599737]
[1763011158120,2.83967044,102100.0,102090.0,0.19599737]
[1763011158536,2.83967044,102100.0,102090.0,9.18e-05]
[1763011163685,2.075461,102100.0,102090.0,0.19599737]
[1763011163889,2.075461,102100.0,102090.0,0.28870291]
[1763011164193,1.752461,102100.0,102090.0,0.79622597]
[1763011164395,0.002,102100.0,102090.0,0.79622597]
[1763011164800,2.071461,102110.0,102100.0,0.19588638]
[1763011166807,0.01405,102120.0,102110.0,0.1958672]
[1763011167009,1.748461,102120.0,102110.0,0.28857274]
[1763011167219,0.01457,102130.0,102120.0,0.19584802]
[1763011167452,0.0002,102130.0,102120.0,0.19584802]
[1763011167891,0.19581107,102140.0,102130.0,0.19582884]
[1763011168069,1.94427207,102140.0,102130.0,0.19582884]
[1763011168279,1.96283207,102140.0,102130.0,0.19582884]
[1763011168714,1.98111519,102140.0,102130.0,0.19582884]
[1763011169051,1.98111519,102140.0,102120.0,0.19584802]
[1763011169253,0.22912884,102130.0,102110.0,0.20566056]
[1763011169593,0.22912884,102130.0,102120.0,0.19584802]
[1763011169795,0.23012884,102130.0,102120.0,0.19584802]
[1763011170134,0.26055884,102130.0,102120.0,0.19584802]
[1763011170335,0.25955884,102130.0,102120.0,0.19584802]
[1763011170529,0.26055884,102130.0,102120.0,0.19584802]
[1763011170756,0.06473,102130.0,102120.0,0.19584802]
[1763011170953,0.26055884,102130.0,102120.0,0.19584802]
[1763011171221,2.51663603,102130.0,102120.0,0.00025725]
[1763011171425,2.61034157,102130.0,102120.0,0.00025725]
[1763011171633,2.62861051,102130.0,102120.0,0.00025725]
[1763011172417,2.99502925,102130.0,102120.0,0.00025725]
[1763011172625,3.04495995,102130.0,102120.0,0.00025725]
[1763011172832,3.06487577,102130.0,102120.0,0.00025725]
[1763011173034,3.25330614,102130.0,102120.0,0.00025725]
[1763011173235,3.23339032,102130.0,102120.0,0.00025725]
[1763011174364,3.21234833,102130.0,102120.0,0.00025725]
[1763011174527,3.23339133,102130.0,102120.0,0.00025725]
[1763011174919,3.25330715,102130.0,102120.0,0.00025725]
[1763011175644,3.23339133,102130.0,102120.0,0.00025725]
[1763011176006,2.46513045,102130.0,102120.0,0.00025725]
[1763011176208,2.44408745,102130.0,102120.0,0.19610527]
[1763011176413,2.44408745,102130.0,102120.0,0.00025725]
[1763011178570,3.16892959,102130.0,102120.0,0.00025725]
[1763011185361,3.18999722,102130.0,102120.0,0.00025725]
[1763011185816,2.46515508,102130.0,102120.0,0.00025725]
[1763011186201,3.18999722,102130.0,102120.0,0.00025725]
[1763011189694,2.46515508,102130.0,102120.0,0.00025725]
[1763011189916,2.46515508,102130.0,102120.0,0.19610527]
[1763011190095,2.37244954,102130.0,102120.0,0.00025725]
[1763011191261,2.37244954,102130.0,102120.0,0.19610527]
[1763011191411,2.37244954,102130.0,102120.0,0.00025725]
[1763011193004,2.87964696,102130.0,102120.0,0.00025725]
[1763011197000,2.90872815,102130.0,102120.0,0.00025725]
[1763011197607,2.95214689,102130.0,102120.0,0.00025725]
[1763011197805,2.96111978,102130.0,102120.0,0.00025725]
[1763011198030,2.93223107,102130.0,102120.0,0.00025725]
[1763011198199,2.93223263,102130.0,102120.0,0.00025725]
[1763011198402,2.9230657,102130.0,102120.0,0.00025725]
[1763011200284,2.04944954,102130.0,102120.0,0.00025725]
[1763011200431,2.87964696,102130.0,102120.0,0.00025725]
[1763011200956,2.1276307,102130.0,102120.0,0.19610527]
[1763011201167,0.02036207,102130.0,102120.0,0.70330269]
[1763011201389,0.00209313,102130.0,102120.0,0.70330269]
[1763011201948,0.00209313,102130.0,102120.0,1.21050011]
[1763011202188,0.00209313,102130.0,102120.0,0.70330269]
[1763011202383,1.748461,102150.0,102140.0,0.70300709]
[1763011202590,1.74860147,102150.0,102140.0,0.19580967]
[1763011202764,0.01847034,102150.0,102140.0,0.19580967]
[1763011202978,0.00014047,102150.0,102140.0,0.19580967]
[1763011203170,0.00078987,102150.0,102140.0,0.19580967]
[1763011206097,0.24650037,102150.0,102130.0,0.29830911]
[1763011206319,1.748461,102140.0,102130.0,0.29830911]
[1763011208087,1.94427067,102140.0,102130.0,0.29830911]
[1763011208235,0.21577967,102140.0,102130.0,0.29830911]
[1763011209002,0.01997,102140.0,102130.0,0.29830911]
[1763011209220,0.22588097,102150.0,102130.0,0.29830911]
[1763011209431,1.748461,102140.0,102130.0,0.29930911]
[1763011209985,0.24572967,102140.0,102130.0,0.001]
[1763011210197,2.01248966,102140.0,102130.0,0.19682884]
[1763011211013,2.58856298,102140.0,102130.0,0.001]
[1763011211216,2.91156298,102140.0,102130.0,0.002]
[1763011211655,2.91196492,102140.0,102130.0,0.002]
[1763011212959,3.1619331,102140.0,102130.0,0.002]
[1763011213160,3.18184892,102140.0,102130.0,0.002]
[1763011213361,3.18184892,102140.0,102130.0,0.001]
[1763011213835,3.40535184,102140.0,102130.0,0.001]
[1763011214038,3.42526766,102140.0,102130.0,0.001]
[1763011214463,3.39637895,102140.0,102130.0,0.001]
[1763011215836,3.39737895,102140.0,102130.0,0.001]
[1763011216574,1.94434211,102110.0,102090.0,0.29840638]
[1763011216752,0.01616,102100.0,102090.0,0.29840638]
[1763011216970,0.23201638,102100.0,102090.0,0.29840638]
[1763011217169,0.23201638,102100.0,102090.0,0.20570084]
[1763011217664,0.23201638,102100.0,102090.0,0.20579264]
[1763011218074,2.33342738,102100.0,102090.0,0.0010918]
[1763011218274,2.33342738,102100.0,102090.0,0.19599737]
[1763011218275,2.137541,102100.0,102090.0,0.19599737]
[1763011218678,2.137541,102100.0,102090.0,0.19699737]
[1763011219081,0.35913,102100.0,102090.0,0.19699737]
[1763011219339,0.35913,102100.0,102090.0,0.19599737]
[1763011219543,0.35913,102100.0,102090.0,0.19699737]
[1763011219746,0.35913,102100.0,102090.0,0.19799737]
[1763011220372,0.323,102100.0,102090.0,0.19799737]
[1763011220574,0.323,102100.0,102090.0,0.29070291]
[1763011221823,0.2517787,102120.0,102100.0,0.19588638]
[1763011222013,1.748461,102110.0,102100.0,0.19588638]
[1763011223035,0.323,102110.0,102100.0,0.19588638]
[1763011223865,0.01616,102120.0,102110.0,0.1958672]
[1763011224304,0.33916,102120.0,102110.0,0.1958672]
[1763011224691,0.53500802,102120.0,102110.0,0.1958672]
[1763011226326,0.33916,102120.0,102110.0,0.1958672]
[1763011228340,0.323,102120.0,102110.0,0.1958672]
[1763011228644,0.323,102120.0,102110.0,0.28857274]
[1763011228851,0.323,102120.0,102110.0,0.79568507]
[1763011230931,0.323,102120.0,102110.0,0.79668507]
[1763011231128,1.77481342,102140.0,102130.0,0.19582884]
[1763011231336,2.08802294,102140.0,102130.0,0.19582884]
[1763011231537,2.28383261,102140.0,102130.0,0.19582884]
[1763011232385,2.30499261,102140.0,102130.0,0.19582884]
[1763011232564,0.19582884,102130.0,102120.0,0.19583201]
[1763011233828,2.82095494,102140.0,102130.0,0.19582884]
[1763011234039,2.81995494,102140.0,102130.0,0.19582884]
[1763011234266,2.84011494,102140.0,102130.0,0.19582884]
[1763011234610,1.748461,102130.0,102120.0,0.19583201]
[1763011236588,1.511594,102130.0,102120.0,0.19583201]
[1763011236831,2.58408794,102140.0,102130.0,0.19582884]
[1763011237055,1.511594,102130.0,102120.0,0.19583201]
[1763011239642,1.70744246,102120.0,102110.0,0.19586669]
[1763011239856,0.01563,102130.0,102110.0,0.19586669]
[1763011240069,1.511594,102130.0,102120.0,0.70296035]
[1763011240259,1.511594,102130.0,102120.0,0.19584802]
[1763011240458,1.511594,102130.0,102120.0,0.70296035]
[1763011242937,1.511594,102130.0,102120.0,0.70396035]
[1763011245941,1.511594,102130.0,102120.0,0.70496035]
[1763011249031,0.00040194,102140.0,102130.0,0.19582884]
[1763011249365,0.00040194,102140.0,102130.0,0.28853438]
[1763011250887,0.21184161,102140.0,102130.0,0.19582884]
[1763011254880,0.01603194,102140.0,102130.0,0.19582884]
[1763011255082,0.00040194,102140.0,102130.0,0.28853438]
[1763011255904,0.84569517,102150.0,102140.0,0.19580967]
[1763011256129,2.37577868,102150.0,102140.0,0.19580967]
[1763011256349,2.37577868,102150.0,102130.0,0.28853438]
[1763011256350,2.57156918,102150.0,102130.0,0.28853438]
[1763011256549,2.57156918,102150.0,102140.0,0.19580967]
[1763011257031,2.59172918,102150.0,102140.0,0.19580967]
[1763011257616,2.59272918,102150.0,102140.0,0.19580967]
[1763011258006,2.39693868,102150.0,102140.0,0.19580967]
[1763011258249,2.39793868,102150.0,102140.0,0.19580967]
[1763011259688,2.59372918,102150.0,102140.0,0.19580967]
[1763011260068,2.59373109,102150.0,102140.0,0.19580967]
[1763011260677,2.39794059,102150.0,102140.0,0.19580967]
[1763011260876,2.59373109,102150.0,102140.0,0.19580967]
[1763011261257,1.511594,102140.0,102130.0,0.28853438]
[1763011261890,1.70740367,102140.0,102130.0,0.19582884]
[1763011262071,0.19580967,102140.0,102130.0,0.19582884]
[1763011262346,0.19580967,102140.0,102130.0,0.28853438]
[1763011262540,1.511594,102140.0,102130.0,0.28853438]
[1763011262741,1.527164,102140.0,102130.0,0.28853438]
[1763011262978,0.01557,102140.0,102130.0,0.28853438]
[1763011263330,0.21137967,102140.0,102130.0,0.28853438]
[1763011263569,0.01557,102140.0,102130.0,0.28853438]
[1763011263914,0.33897078,102150.0,102140.0,0.19580967]
[1763011264121,1.85333507,102150.0,102140.0,0.19580967]
[1763011264522,0.34174107,102150.0,102140.0,0.19580967]
[1763011265183,0.34374107,102150.0,102140.0,0.19580967]
[1763011265509,0.34374107,102150.0,102140.0,0.702922]
[1763011266376,0.34374107,102150.0,102140.0,0.19580967]
[1763011266511,0.34274107,102150.0,102140.0,0.702922]
[1763011266716,0.34274107,102150.0,102140.0,0.703922]
[1763011267114,0.34174107,102150.0,102140.0,0.703922]
[1763011267316,0.34174107,102150.0,102140.0,0.704922]
[1763011267942,0.32338794,102150.0,102140.0,0.19780967]
[1763011268112,0.32338794,102150.0,102140.0,0.704922]
[1763011268548,0.32338794,102150.0,102140.0,0.19780967]
[1763011268800,1.09117077,102150.0,102140.0,0.19780967]
[1763011269001,0.60240936,102150.0,102140.0,0.19780967]
[1763011269457,0.60240936,102150.0,102140.0,0.002]
[1763011269660,3.22058718,102150.0,102140.0,0.002]
[1763011269900,2.71364804,102150.0,102140.0,0.002]
[1763011270543,0.19580967,102140.0,102130.0,0.19582884]
[1763011270807,1.52994492,102140.0,102130.0,0.28853438]
[1763011271032,1.511594,102140.0,102130.0,0.28853438]
[1763011271600,1.511594,102140.0,102130.0,0.28953438]
[1763011272374,1.5299505,102140.0,102130.0,0.28953438]
[1763011272969,1.76010017,102140.0,102130.0,0.001]
[1763011273168,1.76010017,102140.0,102130.0,0.19682884]
[1763011273372,1.76010017,102140.0,102130.0,0.19782884]
[1763011274373,1.511594,102140.0,102130.0,0.19782884]
[1763011274575,2.35621108,102150.0,102140.0,0.19580967]
[1763011274758,2.37457143,102150.0,102140.0,0.19580967]
[1763011275060,2.39462143,102150.0,102140.0,0.19580967]
[1763011275627,1.88768229,102150.0,102140.0,0.19580967]
[1763011276806,2.08347279,102150.0,102140.0,0.19580967]
[1763011277266,1.88768229,102150.0,102140.0,0.19580967]
[1763011277833,2.11401279,102150.0,102140.0,0.19580967]
[1763011278123,1.511594,102140.0,102130.0,0.28853438]
[1763011278324,0.01836035,102140.0,102130.0,0.28853438]
[1763011278539,1.867639,102150.0,102140.0,0.19580967]
[1763011278943,1.530349,102150.0,102140.0,0.70274881]
[1763011279118,0.00038794,102150.0,102140.0,0.70274881]
[1763011279876,0.00038794,102150.0,102140.0,0.73216456]
[1763011280181,0.00038794,102150.0,102140.0,0.73316456]
[1763011280322,0.00038794,102150.0,102140.0,0.73416456]
[1763011289561,0.00038794,102150.0,102140.0,1.30452242]
[1763011289562,1e-08,102150.0,102140.0,1.30452242]
[1763011289761,1e-08,102150.0,102140.0,1.29452243]
[1763011290018,1e-08,102150.0,102140.0,1.30452242]
[1763011290498,1e-08,102150.0,102140.0,1.30352242]
[1763011290702,1e-08,102150.0,102140.0,1.29452243]
[1763011290863,1e-08,102150.0,102140.0,1.30452242]
[1763011291061,1e-08,102150.0,102140.0,1.30352242]
[1763011291498,1e-08,102150.0,102140.0,1.30452242]
[1763011291879,1e-08,102150.0,102140.0,0.29064414]
[1763011292228,1e-08,102150.0,102140.0,1.30452242]
[1763011294590,1e-08,102150.0,102140.0,1.45102242]
[1763011294792,1e-08,102150.0,102140.0,1.77402242]
[1763011295201,0.77833922,102160.0,102150.0,0.23920924]
[1763011295359,0.77833922,102160.0,102150.0,1.35579305]
[1763011295574,0.20812369,102160.0,102150.0,1.35579305]
[1763011295781,0.15545835,102160.0,102150.0,1.35579305]
[1763011296874,0.15545835,102160.0,102150.0,1.35779305]
[1763011297966,0.15545835,102160.0,102150.0,1.35979305]
[1763011298642,0.15545835,102160.0,102150.0,1.38919952]
[1763011298869,0.0002,102180.0,102150.0,0.82884165]
[1763011298870,0.2398942,102180.0,102150.0,0.82884165]
[1763011298991,0.17467422,102180.0,102170.0,0.19575217]
[1763011299400,0.19442422,102180.0,102160.0,0.19577133]
[1763011299605,0.22953217,102170.0,102160.0,0.19577133]
[1763011300233,1.511594,102170.0,102160.0,0.19577133]
[1763011300823,1.511594,102170.0,102160.0,0.70271047]
[1763011301179,1.511594,102170.0,102160.0,0.73212227]
[1763011303887,1.511594,102170.0,102160.0,0.22518313]
[1763011305050,0.00024741,102170.0,102160.0,0.22518313]
[1763011306980,0.00024741,102170.0,102160.0,0.73212227]
[1763011308592,0.00024741,102170.0,102160.0,0.73312227]
[1763011308996,0.00024741,102170.0,102160.0,0.22718313]
[1763011310543,0.00024741,102170.0,102160.0,0.73412227]
[1763011315299,0.00024741,102170.0,102160.0,0.22718313]
[1763011315458,0.00024741,102170.0,102160.0,0.73412227]
[1763011318410,0.24007426,102190.0,102170.0,0.19575217]
[1763011318629,1.511594,102180.0,102170.0,0.28845771]
[1763011318942,0.01835353,102180.0,102170.0,0.28845771]
[1763011320297,0.23162655,102180.0,102170.0,0.28845771]
[1763011320501,0.03589353,102180.0,102170.0,0.28845771]
[1763011322306,0.01835353,102180.0,102170.0,0.28845771]
[1763011324028,0.0186009,102180.0,102170.0,0.28845771]
[1763011324568,0.00024737,102180.0,102170.0,0.28845771]
[1763011324773,0.19598039,102180.0,102170.0,0.28845771]
[1763011324976,1.511594,102170.0,102160.0,0.23497169]
[1763011325790,0.24559039,102180.0,102170.0,0.19575217]
[1763011325999,1.55196987,102180.0,102170.0,0.19575217]
[1763011326153,1.32416685,102180.0,102170.0,0.19575217]
[1763011326356,0.03614585,102180.0,102170.0,0.28845771]
[1763011326569,0.01778737,102180.0,102170.0,0.28845771]
[1763011326802,0.23603039,102180.0,102170.0,0.19575217]
[1763011326974,1.57448119,102180.0,102170.0,0.19575217]
[1763011327202,1.288021,102170.0,102160.0,0.23597169]
[1763011327789,1.288021,102170.0,102160.0,0.23497169]
[1763011328417,1.288021,102170.0,102160.0,0.23597169]
[1763011328807,1.288021,102170.0,102160.0,0.23697169]
[1763011331028,1.288021,102170.0,102160.0,0.74358163]
[1763011331254,1.56156317,102170.0,102160.0,0.22718313]
[1763011331424,2.06817311,102170.0,102160.0,0.22718313]
[1763011331625,2.06817311,102170.0,102160.0,0.0314118]
[1763011331917,2.06817311,102170.0,102160.0,0.22718313]
[1763011332151,2.06817311,102170.0,102160.0,0.22518313]
[1763011332363,2.06817311,102170.0,102160.0,0.19577133]
[1763011332758,0.19577133,102160.0,102150.0,0.32770065]
[1763011332940,0.27356133,102160.0,102150.0,0.32770065]
[1763011333180,0.27356133,102160.0,102140.0,0.19580195]
[1763011333181,0.78017127,102160.0,102140.0,0.19580195]
[1763011333388,0.78017127,102160.0,102150.0,0.1957905]
[1763011333389,0.07779,102160.0,102150.0,0.1957905]
[1763011333530,0.27356133,102160.0,102150.0,0.1957905]
[1763011333732,0.78017127,102160.0,102150.0,0.1957905]
[1763011334358,0.78017127,102160.0,102150.0,0.1977905]
[1763011334563,0.78017127,102160.0,102150.0,0.001]
[1763011334768,0.78017127,102160.0,102140.0,0.19580195]
[1763011335163,0.78017127,102160.0,102150.0,0.001]
[1763011335749,0.78017127,102160.0,102140.0,0.22522166]
[1763011335945,0.78017127,102160.0,102140.0,0.22622166]
[1763011336769,0.1957905,102150.0,102140.0,0.22622166]
[1763011336962,0.2735805,102150.0,102140.0,0.03041971]
[1763011337089,2.06821144,102150.0,102140.0,0.02941971]
[1763011337294,2.06821144,102150.0,102130.0,0.29832582]
[1763011337295,0.19580967,102140.0,102130.0,0.29832582]
[1763011337494,0.04192,102140.0,102130.0,0.32774804]
[1763011337697,0.23772967,102140.0,102130.0,0.2350425]
[1763011337905,0.27369121,102140.0,102130.0,0.02942222]
[1763011338171,0.27369121,102140.0,102130.0,0.3179566]
[1763011338365,0.23782121,102140.0,102130.0,0.3179566]
[1763011338762,0.23782121,102140.0,102130.0,0.3189566]
[1763011339048,0.04201154,102140.0,102130.0,0.3199566]
[1763011339585,0.01869154,102140.0,102130.0,0.3199566]
[1763011340206,0.21450121,102140.0,102130.0,0.22725106]
[1763011340421,0.23782121,102140.0,102130.0,0.3199566]
[1763011341144,0.27369121,102140.0,102130.0,0.22725106]
[1763011341350,2.06832215,102140.0,102130.0,0.002]
[1763011343187,2.06832215,102140.0,102130.0,0.001]
[1763011343738,9.154e-05,102140.0,102130.0,0.70343878]
[1763011344510,9.154e-05,102140.0,102130.0,0.19682884]
[1763011346134,0.19590121,102140.0,102130.0,0.19682884]
[1763011346456,9.154e-05,102140.0,102130.0,0.19682884]
[1763011348090,9.154e-05,102140.0,102130.0,0.79614432]
[1763011348281,9.154e-05,102140.0,102130.0,0.82556656]
[1763011354471,0.21241121,102140.0,102130.0,0.03042224]
[1763011354617,0.27169121,102140.0,102130.0,0.22625108]
[1763011355024,0.27169121,102140.0,102130.0,0.03042224]
[1763011355412,0.27169121,102140.0,102130.0,0.22625108]
[1763011356337,0.27169121,102140.0,102130.0,0.03042224]
[1763011356742,0.27169121,102140.0,102130.0,0.22625108]
[1763011357352,0.27169121,102140.0,102130.0,0.31895662]
[1763011358138,0.27169121,102140.0,102130.0,0.12312778]
[1763011358384,1.10130115,102140.0,102130.0,0.03042224]
[1763011358535,2.38932215,102140.0,102130.0,0.001]
[1763011360289,2.40765476,102140.0,102130.0,0.001]
[1763011361330,0.19582884,102130.0,102120.0,0.02942473]
[1763011361566,0.27161884,102130.0,102120.0,0.02942473]
[1763011361963,0.27161884,102130.0,102120.0,0.22527275]
[1763011362493,0.27161884,102130.0,102120.0,0.22627275]
[1763011362830,0.03981,102130.0,102120.0,0.22627275]
[1763011363227,0.07579,102130.0,102120.0,0.22627275]
[1763011363635,0.27161884,102130.0,102120.0,0.22627275]
[1763011364360,0.28996996,102130.0,102120.0,0.22627275]
[1763011364567,0.28997272,102130.0,102120.0,0.22627275]
[1763011365657,0.09414388,102130.0,102120.0,0.22627275]
[1763011366056,0.28997272,102130.0,102120.0,0.22627275]
[1763011366509,0.09414388,102130.0,102120.0,0.22627275]
[1763011366690,0.03486388,102130.0,102120.0,0.73288269]
[1763011366970,1.663511,102140.0,102130.0,0.19582884]
[1763011367176,1.85932067,102140.0,102130.0,0.19582884]
[1763011367372,1.88262067,102140.0,102130.0,0.19582884]
[1763011368519,1.88362067,102140.0,102130.0,0.19582884]
[1763011369134,1.687811,102140.0,102130.0,0.19582884]
[1763011369345,1.56062067,102140.0,102130.0,0.19582884]
[1763011369543,1.288021,102130.0,102120.0,0.24153275]
[1763011369777,1.288021,102130.0,102120.0,0.76440269]
[1763011369978,1.288021,102130.0,102120.0,0.78066269]
[1763011370746,0.001,102140.0,102130.0,0.19582884]
[1763011370999,0.001,102140.0,102130.0,0.71869878]
[1763011371201,0.88062651,102150.0,102130.0,0.71869878]
[1763011371429,1.288021,102140.0,102130.0,0.73542692]
[1763011371630,1.48383067,102140.0,102130.0,0.22881698]
[1763011371786,0.19580967,102140.0,102130.0,0.01672814]
[1763011372201,0.21231967,102140.0,102130.0,0.21255698]
[1763011372391,0.01651,102140.0,102130.0,0.21255698]
[1763011373362,0.01751,102140.0,102130.0,0.21255698]
[1763011374345,0.001,102140.0,102130.0,0.22881698]
[1763011374764,0.001,102140.0,102130.0,0.82813246]
[1763011375094,0.001,102140.0,102130.0,0.8575547]
[1763011375506,1.842601,102150.0,102140.0,0.19580967]
[1763011375706,0.0186,102150.0,102140.0,0.19580967]
[1763011375962,0.0186,102150.0,102140.0,0.21206967]
[1763011376619,0.3416,102150.0,102140.0,0.21206967]
[1763011377253,0.5373905,102150.0,102140.0,0.21206967]
[1763011377433,0.5187905,102150.0,102140.0,0.23209967]
[1763011377760,0.323,102150.0,102140.0,0.23209967]
[1763011378492,0.323,102150.0,102140.0,0.26152125]
[1763011378893,1.53837384,102160.0,102150.0,0.1957905]
[1763011379098,1.52074985,102160.0,102150.0,0.2148205]
[1763011379450,1.64797701,102160.0,102150.0,0.2148205]
[1763011379667,0.34135601,102160.0,102150.0,0.26326862]
[1763011379870,0.34135601,102160.0,102150.0,0.35597416]
[1763011380001,0.34135601,102160.0,102150.0,0.8625841]
[1763011380406,1.288021,102170.0,102160.0,0.19576106]
[1763011380608,0.0183513,102170.0,102160.0,0.749951]
[1763011380804,2.00712299,102180.0,102170.0,0.19575217]
[1763011381116,2.34847238,102180.0,102170.0,0.19575217]
[1763011381343,2.1527377,102180.0,102170.0,0.19575217]
[1763011381521,1.64612776,102180.0,102170.0,0.21478217]
[1763011382101,1.63075517,102180.0,102170.0,0.263224]
[1763011382322,1.28940578,102180.0,102170.0,0.263224]
[1763011383148,1.4851388,102180.0,102170.0,0.263224]
[1763011383602,1.08205841,102180.0,102170.0,0.263224]
[1763011384077,0.00113741,102180.0,102170.0,0.86253948]
[1763011384624,0.00013741,102180.0,102170.0,0.86253948]
[1763011386154,0.00013741,102180.0,102170.0,0.264224]
[1763011386766,0.00013741,102180.0,102170.0,0.35692954]
[1763011389340,0.19587043,102180.0,102170.0,0.35692954]
[1763011389546,0.78169037,102180.0,102170.0,0.226164]
[1763011389858,0.74444037,102180.0,102170.0,0.226164]
[1763011390056,0.72054037,102180.0,102170.0,0.244284]
[1763011390495,1.28830031,102180.0,102170.0,0.03041183]
[1763011390718,2.36922131,102180.0,102170.0,0.03041183]
[1763011391221,2.69222131,102180.0,102170.0,0.03041183]
[1763011391447,3.19883125,102180.0,102170.0,0.001]
[1763011391670,3.30934896,102180.0,102170.0,0.001]
[1763011392108,1.59969233,102160.0,102150.0,0.02941751]
[1763011392321,2.65487221,102160.0,102150.0,0.02941751]
[1763011392519,2.69212221,102160.0,102150.0,0.02941751]
[1763011392986,2.18578623,102160.0,102150.0,0.02941751]
[1763011393432,2.18578623,102160.0,102150.0,0.22520801]
[1763011393886,2.18578623,102160.0,102150.0,0.03041751]
[1763011394791,2.18578623,102160.0,102150.0,0.22620801]
[1763011395885,2.14853623,102160.0,102150.0,0.22620801]
[1763011397505,1.445881,102160.0,102150.0,0.22620801]
[1763011397717,2.14853623,102160.0,102150.0,0.24432801]
[1763011398240,1.9527649,102160.0,102150.0,0.24432801]
[1763011398674,1.64165233,102160.0,102150.0,0.22620801]
[1763011399292,1.61775233,102160.0,102150.0,0.24432801]
[1763011399496,1.421981,102160.0,102150.0,0.24432801]
[1763011400462,0.323,102160.0,102150.0,0.26244801]
[1763011401147,0.51877133,102160.0,102150.0,0.24432801]
[1763011401367,0.51877133,102160.0,102150.0,0.04853751]
[1763011401511,1.59969233,102160.0,102150.0,0.04853751]
[1763011401708,1.61775233,102160.0,102150.0,0.04853751]
[1763011402519,1.64165233,102160.0,102150.0,0.04853751]
[1763011402871,1.67890233,102160.0,102150.0,0.03041751]
[1763011403849,2.18578623,102160.0,102150.0,0.03041751]
[1763011404430,2.18578623,102160.0,102150.0,0.001]
[1763011405908,1.67890233,102160.0,102150.0,0.001]
[1763011406372,2.18578623,102160.0,102150.0,0.001]
[1763011407713,1.67890233,102160.0,102150.0,0.001]
[1763011407874,2.18578623,102160.0,102150.0,0.001]
[1763011411708,2.18578623,102160.0,102150.0,0.1967905]
[1763011412027,1.64165233,102160.0,102150.0,0.1967905]
[1763011412230,1.61775233,102160.0,102150.0,0.2150705]
[1763011412452,1.61775233,102160.0,102150.0,0.24448807]